bitfinex-derivatives/quotes_BNBF0:USTF0_20250316
["timestamp","ask_amount","ask_price","bid_price","bid_amount"]
[1742123188627,0.33352789,599.65,597.84,1.24208646]
[1742123189321,0.33352789,599.65,597.85,0.33453207]
[1742123197632,0.29080091,599.64,597.85,0.33453207]
[1742123198626,0.33354457,599.62,597.85,0.33453207]
[1742123204841,0.33354457,599.62,597.81,0.952]
[1742123207234,2.5185475,598.97,597.81,0.952]
[1742123207637,2.5185475,598.97,595.74,0.71419214]
[1742123207835,2.5185475,598.97,597.12,0.29101248]
[1742123208032,2.5185475,598.97,597.13,0.64244444]
[1742123208234,2.5185475,598.97,597.13,0.33493544]
[1742123208542,2.5185475,599.06,597.13,0.33493544]
[1742123209634,0.29101248,599.1,597.13,0.33493544]
[1742123210041,2.5185475,599.42,597.14,2.43265317]
[1742123210441,0.29101978,599.41,597.14,2.43265317]
[1742123210642,0.29101978,599.41,597.15,1.22765317]
[1742123210844,2.80956728,599.41,597.17,0.334913]
[1742123211042,0.33372267,599.3,597.17,0.334913]
[1742123211237,0.33372267,599.3,597.18,0.30746859]
[1742123211642,0.33372267,599.3,597.17,0.334913]
[1742123212441,2.5185475,598.92,597.17,0.334913]
[1742123214545,0.33394556,598.9,597.17,0.334913]
[1742123216443,2.5185475,598.81,597.17,0.334913]
[1742123218043,0.33400691,598.79,597.17,0.334913]
[1742123223849,0.33400691,598.79,597.18,2.62071418]
[1742123224045,0.33400691,598.79,597.19,1.40056738]
[1742123224247,0.33400691,598.79,597.2,1.40056738]
[1742123224451,0.33400691,598.79,597.21,2.28644655]
[1742123224648,0.33400691,598.79,597.22,3.94910788]
[1742123224850,0.33400691,598.79,597.23,3.94910788]
[1742123225150,0.33400691,598.79,597.24,3.94910788]
[1742123225454,0.33400691,598.79,597.25,3.94910788]
[1742123225652,0.33400691,598.79,597.26,3.94887388]
[1742123225855,0.33400691,598.79,597.27,3.64151984]
[1742123226050,2.5185475,598.92,597.28,3.94887388]
[1742123226248,2.5185475,598.92,597.29,7.12136844]
[1742123226448,2.5185475,599.5,597.3,4.66257554]
[1742123226649,0.3336169,599.49,597.31,3.94904852]
[1742123226851,0.3336169,599.49,597.32,3.94904852]
[1742123227052,0.3336169,599.49,597.33,3.94904852]
[1742123227252,0.3336169,599.49,597.32,0.71359806]
[1742123227253,0.3336169,599.49,597.34,3.94904852]
[1742123227450,0.3336169,599.49,597.35,7.12154308]
[1742123227653,0.3336169,599.49,597.36,4.66264658]
[1742123227861,0.3336169,599.49,597.37,3.94904852]
[1742123228056,0.3336169,599.49,597.38,3.94904852]
[1742123228258,0.3336169,599.49,597.39,3.94904852]
[1742123228552,0.3336169,599.49,597.4,3.94904852]
[1742123228755,0.3336169,599.49,597.41,3.94904852]
[1742123228957,2.5185475,599.36,597.42,3.94904852]
[1742123229157,0.3337004,599.34,597.43,4.28381577]
[1742123229352,0.3337004,599.34,597.44,3.94904852]
[1742123229556,0.3337004,599.34,597.45,3.94904852]
[1742123229758,0.3337004,599.34,597.46,3.94904852]
[1742123230057,0.3337004,599.34,597.48,0.33473923]
[1742123230252,0.3337004,599.34,597.49,3.94904852]
[1742123230556,0.3337004,599.34,597.51,0.33472243]
[1742123230759,0.3337004,599.34,597.52,3.95149532]
[1742123230953,0.3337004,599.34,597.54,0.33470562]
[1742123231153,0.3337004,599.34,597.55,3.95149532]
[1742123231459,0.3337004,599.34,597.57,0.33468882]
[1742123231658,0.3337004,599.34,597.58,3.95149532]
[1742123231957,0.3337004,599.34,597.6,0.33467202]
[1742123232152,0.3337004,599.34,597.61,3.95149532]
[1742123232355,0.3337004,599.34,597.63,0.33465522]
[1742123232658,0.3337004,599.34,597.64,3.95877284]
[1742123232860,0.3337004,599.34,597.66,0.33463842]
[1742123233157,0.3337004,599.34,597.67,3.95988672]
[1742123233372,0.3337004,599.34,597.69,0.33462162]
[1742123233559,0.3337004,599.34,597.7,3.96093904]
[1742123233759,0.3337004,599.34,597.72,0.33460483]
[1742123233960,0.3337004,599.34,597.73,0.36324253]
[1742123234161,0.3337004,599.34,597.75,0.33458803]
[1742123234460,0.3337004,599.34,597.76,0.36324253]
[1742123234660,0.3337004,599.34,597.77,0.69799715]
[1742123234960,0.3337004,599.34,597.79,0.33456565]
[1742123235158,0.3337004,599.34,597.8,0.36342031]
[1742123235358,0.3337004,599.34,597.81,0.33455445]
[1742123235561,0.3337004,599.34,597.82,0.36372965]
[1742123235759,0.3337004,599.34,597.83,0.36372124]
[1742123236063,0.3337004,599.34,597.85,0.33453207]
[1742123237156,0.3337004,599.34,597.86,1.2201468]
[1742123237356,0.3337004,599.34,597.87,0.33452088]
[1742123238256,0.3337004,599.34,597.88,1.23022727]
[1742123238663,0.3337004,599.34,597.89,0.3643977]
[1742123238961,0.3337004,599.34,597.9,0.69887666]
[1742123239260,0.3337004,599.34,597.89,3.19860112]
[1742123239261,0.3337004,599.34,597.91,0.3344985]
[1742123239456,0.3337004,599.34,597.92,1.23022727]
[1742123239663,0.3337004,599.34,597.93,0.33448731]
[1742123240461,0.3337004,599.34,597.94,1.23022727]
[1742123240962,0.3337004,599.34,597.95,0.33447612]
[1742123242060,0.3337004,599.34,597.96,1.41433822]
[1742123242262,0.3337004,599.34,597.97,1.41433822]
[1742123242458,0.3337004,599.34,597.98,0.33445934]
[1742123242961,0.3337004,599.34,597.99,1.2320248]
[1742123243158,0.3337004,599.34,598.0,0.33444816]
[1742123243359,0.3337004,599.34,598.01,1.2320248]
[1742123243566,0.3337004,599.34,598.02,0.33443697]
[1742123245565,0.3337004,599.34,598.03,1.23212399]
[1742123245965,0.3337004,599.34,598.04,1.23212399]
[1742123246166,0.3337004,599.34,598.05,0.33442019]
[1742123249167,0.3337004,599.34,598.06,1.23141213]
[1742123249376,0.3337004,599.34,598.05,0.33442019]
[1742123249776,0.3337004,599.34,598.06,1.23136065]
[1742123249974,0.3337004,599.34,598.07,0.33440901]
[1742123251879,0.3337004,599.34,598.08,0.30703919]
[1742123252276,0.3337004,599.34,598.09,1.2306759]
[1742123252971,0.3337004,599.34,598.1,1.2306759]
[1742123253569,0.3337004,599.34,598.07,0.33440901]
[1742123258576,0.3337004,599.34,598.08,1.242]
[1742123261983,2.5185475,599.0,598.08,1.242]
[1742123262583,2.5185475,599.0,598.09,0.33439783]
[1742123264081,0.3337004,599.34,598.09,0.33439783]
[1742123267387,2.5185475,599.28,598.09,0.33439783]
[1742123268783,2.5185475,599.24,598.09,0.33439783]
[1742123268981,2.5185475,599.24,598.1,1.22951635]
[1742123269388,2.5185475,599.24,598.11,0.33438665]
[1742123269782,2.5185475,599.24,598.12,1.04740228]
[1742123269989,2.5185475,599.24,598.11,0.33438665]
[1742123270587,2.5185475,599.24,598.12,1.22951635]
[1742123270888,0.3337004,599.34,598.14,0.33436987]
[1742123271791,0.3337004,599.34,598.15,1.22951635]
[1742123272187,0.3337004,599.34,598.14,0.33436987]
[1742123273487,0.3337004,599.34,598.15,1.194]
[1742123280190,2.5185475,599.3,598.15,1.194]
[1742123281989,2.5185475,599.23,598.15,1.194]
[1742123284395,0.3337004,599.34,598.15,1.194]
[1742123291901,0.3337004,599.34,598.16,1.06010475]
[1742123292092,0.3337004,599.34,598.17,1.06010475]
[1742123292297,0.3337004,599.34,598.18,1.06010475]
[1742123292500,0.3337004,599.34,598.17,1.24454257]
[1742123292702,0.3337004,599.34,598.19,1.24454257]
[1742123293204,0.3337004,599.34,598.2,6.69398718]
[1742123293501,0.3337004,599.34,598.21,1.76283148]
[1742123293803,2.5185475,599.73,598.22,3.71331729]
[1742123294005,2.5185475,599.73,598.23,3.71331729]
[1742123294206,2.5185475,599.73,598.24,3.12386927]
[1742123294402,2.02841099,601.97,598.24,3.12386927]
[1742123294403,0.33348896,599.72,598.25,1.42850073]
[1742123294594,0.33348896,599.72,598.26,1.76280354]
[1742123294799,0.33348896,599.72,598.27,3.12318116]
[1742123295002,0.33348896,599.72,598.28,1.42850073]
[1742123295205,0.33348896,599.72,598.29,1.76278677]
[1742123295402,0.33348896,599.72,598.3,1.39429991]
[1742123295603,0.33348896,599.72,598.31,1.06001945]
[1742123295902,0.33348896,599.72,598.32,2.30456202]
[1742123296099,0.33348896,599.72,598.33,1.06001945]
[1742123296402,0.33348896,599.72,598.34,0.33425811]
[1742123296605,0.33348896,599.72,598.34,1.57880068]
[1742123297101,0.33348896,599.72,598.35,1.24454257]
[1742123297302,0.33348896,599.72,598.36,0.33424694]
[1742123301006,2.5185475,599.34,598.36,0.33424694]
[1742123301902,2.5185475,599.32,598.36,0.33424694]
[1742123302108,2.5185475,599.32,597.68,0.29076082]
[1742123302308,0.3337171,599.31,597.7,0.33461602]
[1742123302509,0.3337171,599.31,597.71,4.01728341]
[1742123302707,0.3337171,599.31,597.72,3.71010781]
[1742123302910,0.3337171,599.31,597.73,3.71010781]
[1742123303102,0.3337171,599.31,597.74,2.75267917]
[1742123303318,0.3337171,599.31,597.75,4.04446392]
[1742123303609,0.3337171,599.31,597.76,6.94143726]
[1742123303809,0.3337171,599.31,597.77,3.70987589]
[1742123304008,0.3337171,599.31,597.78,4.04444713]
[1742123304207,0.3337171,599.31,597.79,3.70987589]
[1742123304409,0.3337171,599.31,597.8,6.35236209]
[1742123304607,0.3337171,599.31,597.81,3.12080072]
[1742123304804,0.3337171,599.31,597.82,3.12080072]
[1742123305010,0.3337171,599.31,597.83,3.12080072]
[1742123305211,0.3337171,599.31,597.84,1.42684431]
[1742123305405,0.3337171,599.31,597.85,1.42684431]
[1742123305610,0.3337171,599.31,597.86,3.12035404]
[1742123305806,0.3337171,599.31,597.87,1.42684431]
[1742123306110,0.3337171,599.31,597.88,1.42684431]
[1742123306310,0.3337171,599.31,597.89,1.42684431]
[1742123306512,0.3337171,599.31,597.9,1.42684431]
[1742123306713,0.3337171,599.31,597.91,3.00425103]
[1742123306911,0.3337171,599.31,597.92,1.05872276]
[1742123307212,0.3337171,599.31,597.93,1.05872276]
[1742123307511,0.3337171,599.31,597.94,2.30163098]
[1742123307711,0.3337171,599.31,597.94,1.24290822]
[1742123307912,0.3337171,599.31,597.95,1.05838035]
[1742123308114,0.3337171,599.31,597.96,1.24290822]
[1742123308507,0.3337171,599.31,597.97,2.30125694]
[1742123308712,0.3337171,599.31,597.98,1.05834872]
[1742123309013,0.3337171,599.31,597.99,1.05834872]
[1742123309213,0.3337171,599.31,598.0,1.05834872]
[1742123309514,0.3337171,599.31,598.01,1.05834872]
[1742123309813,0.3337171,599.31,598.02,1.05834872]
[1742123310015,0.3337171,599.31,598.03,1.05834872]
[1742123310211,0.3337171,599.31,598.04,2.30110896]
[1742123310520,0.3337171,599.31,598.05,1.39262093]
[1742123310812,0.3337171,599.31,598.06,1.39261534]
[1742123311012,0.3337171,599.31,598.07,0.33440901]
[1742123311614,0.3337171,599.31,598.08,1.24290822]
[1742123312209,0.3337171,599.31,598.09,1.24290822]
[1742123312611,0.3337171,599.31,598.1,1.39258234]
[1742123312817,0.3337171,599.31,598.11,1.39257675]
[1742123313017,0.3337171,599.31,598.12,0.33438106]
[1742123313717,0.3337171,599.31,598.13,1.24290822]
[1742123313918,0.3337171,599.31,598.14,0.33436987]
[1742123315915,0.3337171,599.31,598.15,1.05820584]
[1742123316121,0.3337171,599.31,598.16,1.05820584]
[1742123316320,0.3337171,599.31,598.17,1.05820584]
[1742123316519,0.3337171,599.31,598.18,1.05820584]
[1742123316827,0.3337171,599.31,598.19,1.05820584]
[1742123317119,0.3337171,599.31,598.18,1.24235338]
[1742123317120,2.5185475,599.82,598.2,1.42606587]
[1742123317320,0.33343892,599.81,598.21,1.42606587]
[1742123317526,0.33343892,599.81,598.22,1.42606587]
[1742123317821,0.33343892,599.81,598.23,1.42606587]
[1742123319421,0.33343892,599.81,598.27,1.24235338]
[1742123319621,0.33343892,599.81,598.28,2.66838265]
[1742123319821,0.33343892,599.81,598.29,1.4260229]
[1742123320117,0.33343892,599.81,598.3,1.76032599]
[1742123320322,0.33343892,599.81,598.31,1.05809733]
[1742123320622,0.33343892,599.81,598.32,1.39236661]
[1742123320823,0.33343892,599.81,598.32,0.33426928]
[1742123321022,0.33343892,599.81,598.31,1.24235338]
[1742123321319,0.33343892,599.81,597.77,1.069]
[1742123321520,0.33343892,599.81,597.79,0.33456565]
[1742123321719,0.33343892,599.81,597.8,3.7096495]
[1742123321920,0.33343892,599.81,597.82,0.33454886]
[1742123322221,0.33343892,599.81,597.83,6.94105599]
[1742123322421,0.33343892,599.81,597.85,0.33453207]
[1742123322616,0.33343892,599.81,597.86,3.7096495]
[1742123322818,0.33343892,599.81,597.88,0.33451528]
[1742123323021,0.33343892,599.81,597.89,3.7096495]
[1742123323324,2.5185475,599.71,597.91,0.3344985]
[1742123323518,0.33350564,599.69,597.92,3.7096495]
[1742123323822,0.33350564,599.69,597.94,0.33448172]
[1742123324015,0.33350564,599.69,597.95,3.7096495]
[1742123324220,0.33350564,599.69,597.96,3.7096495]
[1742123324521,0.33350564,599.69,597.98,0.33445934]
[1742123324817,0.33350564,599.69,597.99,3.70953157]
[1742123325020,0.33350564,599.69,598.0,3.70949482]
[1742123325216,0.33350564,599.69,598.01,3.12046529]
[1742123325418,0.33350564,599.69,598.02,3.12046529]
[1742123325621,0.33350564,599.69,598.03,3.12046529]
[1742123325818,0.33350564,599.69,598.04,1.42671188]
[1742123326020,0.33350564,599.69,598.05,1.42671188]
[1742123326217,0.33350564,599.69,598.06,1.05859588]
[1742123326421,0.33350564,599.69,598.07,1.05859588]
[1742123326618,0.33350564,599.69,598.08,1.05859588]
[1742123326823,0.33350564,599.69,598.08,1.57725207]
[1742123327023,0.33350564,599.69,598.09,0.33439783]
[1742123327424,0.33350564,599.69,598.1,1.24284865]
[1742123328022,0.33350564,599.69,598.11,0.33438665]
[1742123329118,0.33350564,599.69,598.12,1.24284865]
[1742123329926,0.33350564,599.69,598.13,1.57722412]
[1742123330127,0.33350564,599.69,598.14,0.33436987]
[1742123333927,2.5185475,599.68,598.14,0.33436987]
[1742123334723,0.33352232,599.66,598.14,0.33436987]
[1742123337130,2.5185475,599.62,598.14,0.33436987]
[1742123337429,0.3335557,599.6,598.14,0.33436987]
[1742123342335,2.5185475,599.48,598.14,0.33436987]
[1742123342738,2.5185475,599.48,598.15,1.05874188]
[1742123343038,2.5185475,599.48,598.16,1.39310058]
[1742123343239,2.5185475,599.48,598.17,1.05874188]
[1742123343541,2.5185475,599.48,598.18,0.33434752]
[1742123344740,0.3335557,599.6,598.18,0.33434752]
[1742123344941,0.3335557,599.6,598.19,2.30160629]
[1742123345142,0.3335557,599.6,598.2,0.33433634]
[1742123345646,0.3335557,599.6,598.21,1.24289798]
[1742123345838,0.3335557,599.6,598.22,0.33432516]
[1742123346439,2.5185475,599.47,598.22,0.33432516]
[1742123348339,0.3336336,599.46,598.22,0.33432516]
[1742123358141,0.3336336,599.46,598.23,2.30433573]
[1742123358343,0.3336336,599.46,598.24,1.39439105]
[1742123358545,0.3336336,599.46,598.25,1.06006548]
[1742123358745,0.3336336,599.46,598.25,1.24437942]
[1742123358947,0.3336336,599.46,598.26,1.06004731]
[1742123359148,0.3336336,599.46,598.25,1.24437942]
[1742123359345,0.3336336,599.46,598.24,0.33431398]
[1742123362353,0.3336336,599.46,598.25,0.851]
[1742123363047,0.3336336,599.46,598.26,2.30527244]
[1742123363251,0.3336336,599.46,598.27,1.06036632]
[1742123363447,0.3336336,599.46,598.28,1.24490612]
[1742123364356,0.3336336,599.46,598.25,0.851]
[1742123369157,2.5185475,599.24,598.25,0.851]
[1742123371054,2.8521811,599.46,598.25,0.851]
[1742123373861,2.8521811,599.46,598.26,0.33430281]
[1742123374461,0.3336336,599.46,598.26,0.33430281]
[1742123375660,0.3336336,599.46,598.27,1.05970861]
[1742123375860,0.3336336,599.46,598.28,1.05970861]
[1742123376061,0.3336336,599.46,598.29,1.39399465]
[1742123376262,0.3336336,599.46,598.29,0.33428604]
[1742123376456,0.3336336,599.46,598.3,2.67184737]
[1742123376660,0.3336336,599.46,598.31,1.05952851]
[1742123376860,0.3336336,599.46,598.3,1.24405103]
[1742123377059,0.3336336,599.46,598.31,2.63788142]
[1742123377356,0.3336336,599.46,598.32,2.63782761]
[1742123377561,0.3336336,599.46,598.33,1.05948412]
[1742123377754,0.3336336,599.46,598.34,1.42773832]
[1742123377958,0.3336336,599.46,598.35,1.76197777]
[1742123378157,0.3336336,599.46,598.36,1.39373106]
[1742123378364,0.3336336,599.46,598.37,1.39372547]
[1742123378561,0.3336336,599.46,598.38,1.39371988]
[1742123378761,0.3336336,599.46,598.39,1.3937143]
[1742123378963,0.3336336,599.46,598.4,0.33422459]
[1742123379657,0.3336336,599.46,598.41,1.24405103]
[1742123379856,0.3336336,599.46,598.42,0.33421342]
[1742123380662,0.3336336,599.46,598.43,1.24302717]
[1742123380858,0.3336336,599.46,598.44,0.33420225]
[1742123381056,2.5185475,599.85,598.44,0.33420225]
[1742123381361,0.33342224,599.84,598.44,0.33420225]
[1742123381757,0.33342224,599.84,598.45,1.24302717]
[1742123381959,0.33342224,599.84,598.46,1.76045914]
[1742123382161,0.33342224,599.84,598.47,1.76045355]
[1742123382361,0.33342224,599.84,598.48,0.70207893]
[1742123382561,0.33342224,599.84,598.5,0.33416875]
[1742123382761,0.33342224,599.84,598.51,3.11758276]
[1742123382961,0.33342224,599.84,598.52,3.11758276]
[1742123383161,0.33342224,599.84,598.53,1.42546968]
[1742123383458,0.33342224,599.84,598.54,1.7596161]
[1742123383761,0.33342224,599.84,598.55,3.00263769]
[1742123383961,0.33342224,599.84,598.56,1.75960493]
[1742123384156,0.33342224,599.84,598.57,1.05757067]
[1742123384361,0.33342224,599.84,598.58,1.05757067]
[1742123384562,0.33342224,599.84,598.59,1.75859232]
[1742123384862,0.33342224,599.84,598.6,1.75858674]
[1742123385061,0.33342224,599.84,598.61,1.75858115]
[1742123385262,0.33342224,599.84,598.62,1.75857557]
[1742123385562,2.5185475,600.43,598.59,3.22592734]
[1742123385563,2.5185475,600.65,598.63,3.44622158]
[1742123385761,2.5185475,600.65,598.64,3.1121254]
[1742123385961,2.5185475,600.65,598.65,3.1121254]
[1742123386256,0.3329837,600.63,598.66,6.33805274]
[1742123386457,0.3329837,600.63,598.67,3.1121254]
[1742123386664,0.3329837,600.63,598.68,3.1121254]
[1742123386862,0.3329837,600.63,598.69,1.42447381]
[1742123387158,0.3329837,600.63,598.7,4.98445827]
[1742123387364,0.3329837,600.63,598.71,1.75852535]
[1742123387563,0.3329837,600.63,598.72,1.75851977]
[1742123387859,0.3329837,600.63,598.73,4.65040115]
[1742123388055,0.3329837,600.63,598.74,1.05757067]
[1742123388261,2.5185475,600.6,598.75,2.30059784]
[1742123388465,0.33301142,600.58,598.77,0.33401807]
[1742123388662,0.33301142,600.58,598.78,1.05757067]
[1742123388862,0.33301142,600.58,598.77,0.33401807]
[1742123389059,0.33301142,600.58,598.79,1.24302717]
[1742123389261,0.33301142,600.58,598.8,1.05091519]
[1742123389464,0.33301142,600.58,598.81,1.05091519]
[1742123389764,0.33301142,600.58,598.8,1.24302717]
[1742123389965,0.33301142,600.58,598.82,1.24302717]
[1742123390459,0.33301142,600.58,598.83,1.24302717]
[1742123390665,0.33301142,600.58,598.84,0.33397902]
[1742123394867,2.5185475,600.45,598.84,0.33397902]
[1742123395168,0.33309461,600.43,598.84,0.33397902]
[1742123396767,2.5185475,600.3,598.84,0.33397902]
[1742123396963,0.33317785,600.28,598.84,0.33397902]
[1742123406976,0.33317785,600.28,598.85,1.287]
[1742123412680,2.5185475,600.05,598.85,1.287]
[1742123412874,0.33331111,600.04,598.85,1.287]
[1742123413481,0.33331111,600.04,598.86,0.33396787]
[1742123418887,2.5185475,599.94,598.86,0.33396787]
[1742123420281,0.33331111,600.04,598.86,0.33396787]
[1742123420282,2.5185475,599.95,598.86,0.33396787]
[1742123422081,2.5185475,599.86,598.86,0.33396787]
[1742123423785,2.5185475,599.86,598.85,1.287]
[1742123423989,0.33341668,599.85,598.85,1.287]
[1742123424390,2.5185475,599.75,598.85,1.287]
[1742123425787,2.5185475,599.56,598.85,1.287]
[1742123427592,0.33341668,599.85,598.85,1.287]
[1742123427593,2.5185475,599.58,598.85,1.287]
[1742123430394,2.5185475,599.75,598.85,1.287]
[1742123432301,0.33341668,599.85,598.85,1.287]
[1742123452114,2.5185475,599.62,598.85,1.287]
[1742123453113,2.5185475,599.62,598.34,0.29045505]
[1742123453312,2.5185475,599.62,598.36,0.33424694]
[1742123453515,2.5185475,599.62,598.37,4.00765761]
[1742123453707,2.5185475,599.62,598.39,0.33423018]
[1742123453911,2.5185475,599.62,598.4,7.23081438]
[1742123454116,2.5185475,600.39,598.42,0.33421342]
[1742123454409,0.3331279,600.37,598.43,3.70089547]
[1742123454608,0.3331279,600.37,598.45,0.33419667]
[1742123454812,0.3331279,600.37,598.46,3.7006793]
[1742123455114,0.3331279,600.37,598.48,0.33417992]
[1742123455314,0.3331279,600.37,598.49,0.95499727]
[1742123455511,0.3331279,600.37,598.51,0.33416317]
[1742123455716,0.3331279,600.37,598.52,1.05607494]
[1742123455918,2.5185475,600.31,598.53,0.334152]
[1742123456218,0.3331723,600.29,598.53,0.334152]
[1742123456418,0.3331723,600.29,598.54,1.23967568]
[1742123456620,0.3331723,600.29,598.55,0.33414084]
[1742123457719,2.5185475,600.27,598.55,0.33414084]
[1742123457919,0.3331945,600.25,598.55,0.33414084]
[1742123462024,0.29046596,600.24,598.55,0.33414084]
[1742123462322,0.33321115,600.22,598.55,0.33414084]
[1742123463425,2.5185475,600.13,598.55,0.33414084]
[1742123463625,0.33327223,600.11,598.55,0.33414084]
[1742123475229,2.5185475,599.99,598.55,0.33414084]
[1742123475528,0.33335,599.97,598.55,0.33414084]
[1742123477929,2.5185475,599.95,598.55,0.33414084]
[1742123478228,0.33337222,599.93,598.55,0.33414084]
[1742123480533,2.85191972,599.93,598.55,0.33414084]
[1742123483131,2.5185475,599.55,598.55,0.33414084]
[1742123485530,2.5185475,599.63,598.55,0.33414084]
[1742123485734,0.33354457,599.62,598.55,0.33414084]
[1742123489034,0.33354457,599.62,598.52,0.784]
[1742123492436,2.5185475,599.3,598.52,0.784]
[1742123492638,0.33372824,599.29,598.52,0.784]
[1742123500544,0.33372824,599.29,595.83,6.20413637]
[1742123500743,0.33372824,599.29,596.0,0.33557046]
[1742123500943,0.33372824,599.29,596.01,3.98814154]
[1742123501141,0.33372824,599.29,596.17,0.33547478]
[1742123501341,0.33372824,599.29,596.18,3.98814154]
[1742123501543,0.33372824,599.29,596.33,0.33538477]
[1742123501744,0.33372824,599.29,596.34,3.98814154]
[1742123501942,0.33372824,599.29,596.48,0.33530042]
[1742123502142,0.33372824,599.29,596.49,3.68075338]
[1742123502343,0.33372824,599.29,596.63,0.33521613]
[1742123502544,0.33372824,599.29,596.64,3.98814154]
[1742123502746,0.33372824,599.29,596.77,0.33513749]
[1742123502948,0.33372824,599.29,596.78,7.19359523]
[1742123503147,0.33372824,599.29,596.9,0.33506449]
[1742123503347,0.33372824,599.29,596.91,3.98814154]
[1742123503549,0.33372824,599.29,597.02,0.33499715]
[1742123503847,2.5185475,599.16,597.03,3.68075338]
[1742123504048,0.33381179,599.14,597.05,0.33498031]
[1742123504248,0.33381179,599.14,597.06,3.98815828]
[1742123504449,0.33381179,599.14,597.08,0.33496348]
[1742123504653,0.33381179,599.14,597.09,3.98815828]
[1742123504844,0.33381179,599.14,597.11,0.33494665]
[1742123505045,0.33381179,599.14,597.12,3.98815828]
[1742123505347,0.33381179,599.14,597.14,0.33492983]
[1742123505546,0.33381179,599.14,597.15,3.98815828]
[1742123505742,0.33381179,599.14,597.17,0.334913]
[1742123505951,0.33381179,599.14,597.18,3.68075338]
[1742123506144,0.33381179,599.14,597.2,0.33489618]
[1742123506349,0.33381179,599.14,597.21,3.98815828]
[1742123506549,0.33381179,599.14,597.22,3.98815828]
[1742123506850,0.33381179,599.14,597.23,4.32303763]
[1742123507049,0.33381179,599.14,597.24,3.98815828]
[1742123507250,0.33381179,599.14,597.25,3.98815828]
[1742123507450,0.33381179,599.14,597.27,0.33485693]
[1742123507651,0.33381179,599.14,597.28,2.30807161]
[1742123507950,0.33381179,599.14,597.3,0.33484011]
[1742123508147,0.33381179,599.14,597.31,1.7230485]
[1742123508345,0.33381179,599.14,597.33,0.33482329]
[1742123508552,0.33381179,599.14,597.34,3.97935432]
[1742123508750,0.33381179,599.14,597.36,0.33480648]
[1742123508945,0.33381179,599.14,597.37,3.97935432]
[1742123509151,0.33381179,599.14,597.39,0.33478966]
[1742123509351,0.33381179,599.14,597.4,7.18480801]
[1742123509549,0.33381179,599.14,597.42,0.33477285]
[1742123509750,0.33381179,599.14,597.43,3.97500729]
[1742123509954,0.33381179,599.14,597.45,0.33475604]
[1742123510250,0.33381179,599.14,597.46,3.97500729]
[1742123510451,0.33381179,599.14,597.48,0.33473923]
[1742123510653,0.33381179,599.14,597.49,3.97500729]
[1742123510853,0.33381179,599.14,597.51,0.33472243]
[1742123511053,0.33381179,599.14,597.52,1.99417375]
[1742123511249,0.33381179,599.14,597.54,0.33470562]
[1742123511452,0.33381179,599.14,597.55,1.41148234]
[1742123511649,0.33381179,599.14,597.56,1.41148234]
[1742123511851,0.33381179,599.14,597.57,0.33468882]
[1742123512854,0.33381179,599.14,597.58,1.22754387]
[1742123513053,0.33381179,599.14,597.59,0.33467762]
[1742123513254,0.33381179,599.14,597.6,1.22754387]
[1742123513449,0.33381179,599.14,597.61,0.33466642]
[1742123513847,0.33381179,599.14,597.62,1.22754387]
[1742123514053,0.33381179,599.14,597.62,1.56220469]
[1742123514651,0.33381179,599.14,597.63,1.22754387]
[1742123515156,0.33381179,599.14,597.62,0.33466082]
[1742123516655,0.33381179,599.14,597.63,1.04630586]
[1742123516854,0.33381179,599.14,597.64,0.33464962]
[1742123517355,0.33381179,599.14,597.65,1.22851172]
[1742123517556,0.33381179,599.14,597.66,0.33463842]
[1742123519259,0.33381179,599.14,597.67,1.22940058]
[1742123519558,0.33381179,599.14,597.68,0.33462722]
[1742123521454,0.33381179,599.14,597.69,1.22991734]
[1742123521657,0.33381179,599.14,597.7,0.33461602]
[1742123521858,0.33381179,599.14,597.71,1.22991734]
[1742123522358,0.33381179,599.14,597.72,1.22991734]
[1742123522554,0.33381179,599.14,597.73,0.33459923]
[1742123525968,2.5185475,598.93,597.73,0.33459923]
[1742123526169,0.33393441,598.92,597.73,0.33459923]
[1742123526776,0.33393441,598.92,597.17,0.29106725]
[1742123526974,0.33393441,598.92,597.18,3.98193917]
[1742123527173,0.33393441,598.92,597.19,3.98193917]
[1742123527370,0.33393441,598.92,597.2,2.30470022]
[1742123527571,0.33393441,598.92,597.21,1.72067807]
[1742123527770,2.5185475,598.62,597.22,0.33488496]
[1742123529175,0.33410734,598.61,597.22,0.33488496]
[1742123533574,2.5185475,598.27,597.22,0.33488496]
[1742123534179,0.33430281,598.26,596.91,1.186]
[1742123534374,0.33430281,598.26,596.92,0.33505327]
[1742123534979,0.33430281,598.26,596.93,1.2293301]
[1742123535179,0.33430281,598.26,596.94,0.33504204]
[1742123540587,0.33430281,598.26,596.95,1.22818822]
[1742123540887,0.33430281,598.26,596.96,0.33503082]
[1742123541384,0.33430281,598.26,596.97,0.30761906]
[1742123541687,0.33430281,598.26,596.98,0.33501959]
[1742123541985,0.33430281,598.26,596.99,0.30761906]
[1742123542186,0.33430281,598.26,597.0,0.64261689]
[1742123542386,0.33430281,598.26,597.01,0.33500276]
[1742123542888,0.33430281,598.26,597.02,1.22818822]
[1742123543186,0.33430281,598.26,597.03,0.33499154]
[1742123543783,0.33430281,598.26,597.04,1.22818822]
[1742123543989,0.33430281,598.26,597.05,0.33498031]